bitfinex/quotes_SOLUSD_20250829
["timestamp","ask_amount","ask_price","bid_price","bid_amount"]
[1756429668240,0.06,214.27,214.23,7.46153525]
[1756429668421,0.06,214.27,214.24,7.46153525]
[1756429668623,0.06,214.27,214.24,0.66]
[1756429669144,0.06,214.27,214.22,6.83153525]
[1756429669348,0.06,214.27,214.22,7.49153525]
[1756429669921,0.06,214.27,214.23,0.66]
[1756429670144,6.80153525,214.25,214.22,0.03]
[1756429670644,0.06,214.27,214.22,0.03]
[1756429670855,6.80153525,214.25,214.22,0.03]
[1756429673244,0.06,214.3,214.29,6.80153525]
[1756429673428,0.06,214.3,214.29,7.46153525]
[1756429673619,0.06,214.3,214.29,0.66]
[1756429673814,0.06,214.3,214.25,0.66]
[1756429674124,0.06,214.3,214.28,4.66679111]
[1756429674333,6.86153525,214.3,214.28,4.66679111]
[1756429674645,7.47153525,214.29,214.23,11.46941556]
[1756429674821,6.80153525,214.28,214.23,11.46941556]
[1756429675233,7.47153525,214.28,214.23,4.66788031]
[1756429675449,6.80153525,214.26,214.23,4.66788031]
[1756429675620,6.80153525,214.25,214.23,4.66788031]
[1756429676030,6.80153525,214.25,214.22,0.03]
[1756429676354,7.47153525,214.25,214.22,0.03]
[1756429676720,6.80153525,214.24,214.22,0.03]
[1756429676923,7.47153525,214.24,214.22,0.03]
[1756429677135,6.80153525,214.24,214.22,0.03]
[1756429677319,7.47153525,214.23,214.22,0.03]
[1756429678339,6.80153525,214.27,214.22,0.69]
[1756429678551,6.80153525,214.26,214.22,0.69]
[1756429679017,6.80153525,214.27,214.23,0.66]
[1756429679225,6.80153525,214.28,214.23,0.66]
[1756429679454,6.80153525,214.28,214.24,0.66]
[1756429679846,6.80153525,214.27,214.22,0.03]
[1756429680046,0.06,214.3,214.23,0.66]
[1756429680342,6.80153525,214.28,214.24,4.66766243]
[1756429680530,0.06,214.3,214.25,0.7]
[1756429680727,6.80153525,214.29,214.25,0.7]
[1756429681050,6.80153525,214.26,214.24,4.66766243]
[1756429681229,6.80153525,214.28,214.24,4.66766243]
[1756429681556,6.80153525,214.28,214.24,5.36766243]
[1756429681755,6.80153525,214.28,214.24,4.66766243]
[1756429681935,6.80153525,214.25,214.23,4.667852]
[1756429682257,0.06,214.3,214.22,0.03]
[1756429682258,7.49153525,214.24,214.22,0.03]
[1756429682421,0.69,214.24,214.22,0.03]
[1756429682623,0.06,214.3,214.22,0.03]
[1756429682624,3.93498734,214.3,214.23,0.7]
[1756429682831,6.80153525,214.28,214.23,0.7]
[1756429683139,6.80153525,214.27,214.22,0.03]
[1756429683343,7.49153525,214.28,214.22,0.03]
[1756429683531,6.80153525,214.26,214.22,0.03]
[1756429683933,6.80153525,214.27,214.22,0.03]
[1756429684135,0.06,214.3,214.23,7.50153525]
[1756429684436,6.80153525,214.29,214.24,4.66766243]
[1756429684635,6.80153525,214.27,214.24,4.66766243]
[1756429685038,6.80153525,214.26,214.24,4.66766243]
[1756429685425,26.0,214.28,214.22,0.03]
[1756429685640,6.80153525,214.23,214.22,0.03]
[1756429685829,7.49153525,214.23,214.22,0.03]
[1756429688154,6.80153525,214.24,214.22,0.03]
[1756429688333,6.80153525,214.25,214.22,0.03]
[1756429688534,7.49153525,214.23,214.22,0.03]
[1756429690951,25.75500957,214.23,214.22,0.03]
[1756429691249,19.23779746,214.23,214.22,0.03]
[1756429691435,26.03933271,214.23,214.22,0.03]
[1756429691630,29.85313387,214.23,214.22,0.03]
[1756429691830,64.2331506,214.23,214.22,0.03]
[1756429692027,65.01933271,214.23,214.22,0.03]
[1756429692230,17.47631659,214.23,214.22,0.03]
[1756429692447,6.80153525,214.23,214.22,0.03]
[1756429694246,21.08712926,214.23,214.22,0.03]
[1756429695634,65.03933271,214.23,214.22,0.03]
[1756429695953,68.92005529,214.23,214.22,0.03]
[1756429696149,20.6814524,214.22,214.21,0.03]
[1756429696337,25.34955061,214.22,214.21,0.03]
[1756429696554,29.92027319,214.22,214.21,0.03]
[1756429697176,29.92027319,214.22,214.19,0.03]
[1756429697177,39.59559401,214.2,214.19,0.03]
[1756429697478,46.39712926,214.2,214.19,0.03]
[1756429697683,47.08712926,214.2,214.19,0.03]
[1756429698277,6.80153525,214.2,214.19,0.03]
[1756429698471,32.80153525,214.2,214.19,0.03]
[1756429699654,0.06,214.26,214.19,7.53153525]
[1756429699854,6.80153525,214.25,214.19,7.53153525]
[1756429700080,6.80153525,214.24,214.19,0.73]
[1756429700276,6.80153525,214.22,214.2,0.7]
[1756429700477,6.80153525,214.21,214.19,4.69875204]
[1756429700679,13.65559401,214.26,214.19,4.69875204]
[1756429700856,6.80153525,214.23,214.2,0.7]
[1756429701478,6.80153525,214.24,214.2,0.7]
[1756429701686,6.80153525,214.23,214.21,0.7]
[1756429702051,0.06,214.26,214.22,7.50153525]
[1756429702381,0.06,214.26,214.24,4.66766243]
[1756429702553,0.06,214.26,214.24,11.46919768]
[1756429702754,0.06,214.26,214.25,7.50153525]
[1756429703885,0.06,214.29,214.25,7.50153525]
[1756429704067,0.06,214.29,214.28,6.80153525]
[1756429704382,0.06,214.29,214.19,0.03]
[1756429704383,26.0,214.25,214.19,0.03]
[1756429704694,6.80153525,214.2,214.19,0.03]
[1756429705157,21.3714524,214.2,214.19,0.03]
[1756429705489,25.25217498,214.2,214.1,0.7]
[1756429705799,13.59559401,214.16,214.06,0.7]
[1756429706089,6.80153525,214.12,214.09,0.7]
[1756429706284,3.10906708,214.11,214.09,0.7]
[1756429706455,3.10906708,214.11,214.1,12.17224986]
[1756429706658,3.10906708,214.15,214.1,12.17224986]
[1756429706874,3.10906708,214.14,214.11,0.7]
[1756429707076,3.10906708,214.15,214.12,0.7]
[1756429707272,3.10906708,214.15,214.13,0.7]
[1756429707475,26.0,214.1,213.98,0.1]
[1756429707761,6.80153525,214.0,213.98,0.1]
[1756429708101,26.0,213.96,213.89,2.4373715]
[1756429708250,26.0,213.96,213.9,0.7]
[1756429708453,3.09762798,213.95,213.86,0.7]
[1756429708768,13.87991715,213.96,213.86,0.7]
[1756429708970,13.87991715,213.94,213.86,0.2]
[1756429709168,13.87991715,213.94,213.8,16.37043965]
[1756429709169,3.09762798,213.93,213.8,16.37043965]
[1756429709370,10.06614839,213.87,213.8,16.37043965]
[1756429709571,0.28432314,213.95,213.82,10.06614839]
[1756429709780,10.06614839,213.9,213.84,10.06614839]
[1756429709988,10.06614839,213.91,213.83,26.0]
[1756429710198,26.0,213.95,213.8,16.37043965]
[1756429710491,0.97432314,213.92,213.8,14.74341686]
[1756429710655,10.06614839,213.87,213.8,14.74341686]
[1756429710861,10.06614839,213.87,213.81,10.06614839]
[1756429711171,10.06614839,213.87,213.8,4.67726847]
[1756429711172,0.69,213.9,213.8,4.67726847]
[1756429711371,0.28432314,213.89,213.79,0.69]
[1756429711605,10.75614839,213.9,213.79,0.69]
[1756429711606,10.06614839,213.83,213.79,0.69]
[1756429711810,10.06614839,213.84,213.8,0.69]
[1756429711998,10.06614839,213.84,213.78,4.67752407]
[1756429712322,0.97432314,213.9,213.81,0.69]
[1756429712527,10.06614839,213.86,213.82,4.67683097]
[1756429712817,13.87991715,213.93,213.82,4.67683097]
[1756429712818,4.57114855,213.94,213.83,0.69]
[1756429713117,10.06614839,213.92,213.86,10.06614839]
[1756429713293,4.57114855,213.97,213.86,10.75614839]
[1756429713495,10.06614839,213.91,213.86,0.69]
[1756429713818,10.06614839,213.91,213.87,0.69]
[1756429714021,10.06614839,213.92,213.88,0.69]
[1756429714228,0.69,213.97,213.89,0.69]
[1756429714395,10.06614839,213.93,213.9,4.67508181]
[1756429714596,10.06614839,213.93,213.9,5.36508181]
[1756429714901,10.06614839,213.93,213.9,4.67508181]
[1756429715310,30.57114855,214.0,213.91,0.69]
[1756429715623,10.06614839,213.93,213.9,4.67508181]
[1756429715823,10.06614839,213.93,213.9,5.36508181]
[1756429716709,0.69,213.98,213.91,0.69]
[1756429717018,10.06614839,213.95,213.91,0.69]
[1756429717228,13.59559401,213.99,213.87,0.69]
[1756429717397,10.06614839,213.91,213.85,14.74232327]
[1756429717596,10.06614839,213.9,213.85,4.67617488]
[1756429718142,0.69,213.94,213.85,4.67617488]
[1756429718341,10.06614839,213.9,213.85,4.67617488]
[1756429718516,10.06614839,213.88,213.85,4.67617488]
[1756429718722,0.69,213.91,213.82,40.12]
[1756429718924,0.69,213.91,213.82,54.86291899]
[1756429719124,4.57114855,213.94,213.84,10.06614839]
[1756429719338,10.06614839,213.9,213.84,10.06614839]
[1756429719523,13.12155701,213.89,213.83,10.75614839]
[1756429719725,4.57114855,213.96,213.87,10.06614839]
[1756429719930,10.06614839,213.94,213.88,10.06614839]
[1756429720124,10.06614839,213.95,213.87,0.69]
[1756429720336,3.05574805,213.94,213.88,10.06614839]
[1756429720537,10.06614839,213.94,213.89,4.67530038]
[1756429721123,0.69,213.96,213.89,15.43144877]
[1756429721449,10.06614839,213.95,213.89,5.36530038]
[1756429721617,3.05513285,213.94,213.9,10.06614839]
[1756429721819,3.05513285,213.95,213.9,10.06614839]
[1756429722016,3.05513285,213.98,213.93,10.06614839]
[1756429722218,10.06614839,213.99,213.93,10.75614839]
[1756429722436,3.05513285,213.98,213.94,4.67420772]
[1756429723060,3.88114855,214.04,213.96,10.06614839]
[1756429723366,10.06614839,214.02,213.95,0.69]
[1756429723569,10.06614839,214.0,213.95,0.69]
[1756429723743,10.06614839,213.98,213.94,4.67420772]
[1756429724149,10.06614839,213.96,213.92,4.67443228]
[1756429724662,10.06614839,213.94,213.9,4.67506862]
[1756429724870,3.74627564,213.95,213.9,4.67506862]
[1756429724871,10.06614839,213.93,213.9,4.67506862]
[1756429725247,10.06614839,213.94,213.9,4.67506862]
[1756429725575,10.06614839,213.95,213.9,4.67506862]
[1756429725775,0.06,213.96,213.94,10.06614839]
[1756429725978,0.06,213.96,213.95,10.06614839]
[1756429726273,0.06,213.96,213.93,0.69]
[1756429726442,0.06,213.96,213.94,10.06614839]
[1756429726641,0.06,213.96,213.95,4.67398924]
[1756429726857,0.06,213.96,213.95,15.43013763]
[1756429727273,0.06,213.96,213.95,5.36398924]
[1756429727441,0.06,213.96,213.95,15.43013763]
[1756429727644,0.06,213.96,213.95,5.36398924]
[1756429727844,0.06,213.96,213.95,15.43013763]
[1756429728452,0.06,213.96,213.95,5.36398924]
[1756429728765,0.06,213.96,213.95,14.74013763]
[1756429730168,0.06,213.96,213.95,15.43013763]
[1756429730383,3.05911385,214.03,214.0,10.06614839]
[1756429730684,5.17486474,214.1,213.92,144.42003561]
[1756429730685,3.05911385,214.06,214.03,4.6722422]
[1756429730869,3.05911385,214.06,214.01,5.13975079]
[1756429730870,0.69,214.06,214.01,5.13975079]
[1756429731072,0.69,214.05,213.99,4.67290115]
[1756429731270,0.69,214.04,213.96,4.67377079]
[1756429731574,3.74911385,214.03,213.98,10.06614839]
[1756429731775,3.74911385,214.02,213.99,10.06614839]
[1756429731984,3.05911385,214.01,213.96,5.36377079]
[1756429732195,3.05911385,214.02,214.0,10.06614839]
[1756429732490,3.05911385,214.05,214.01,10.06614839]
[1756429732786,3.05911385,214.06,214.04,10.06614839]
[1756429732972,3.05911385,214.08,214.04,10.06614839]
[1756429733280,3.74911385,214.07,214.02,4.67246051]
[1756429733467,3.74911385,214.06,214.04,10.06614839]
[1756429733786,3.05911385,214.05,214.02,4.67246051]
[1756429733963,3.05911385,214.05,214.04,10.06614839]
[1756429734278,3.05911385,214.05,214.02,4.67246051]
[1756429734480,3.05911385,214.05,214.04,10.06614839]
[1756429734680,3.05911385,214.07,214.04,10.06614839]
[1756429734885,3.05911385,214.06,214.04,4.67196712]
[1756429735081,26.28432314,214.13,214.04,5.36196712]
[1756429735082,3.05911385,214.08,214.04,5.36196712]
[1756429735263,3.05911385,214.1,214.04,4.67196712]
[1756429735790,3.05911385,214.09,214.04,4.67196712]
[1756429735969,0.69,214.13,214.08,10.06614839]
[1756429736175,0.69,214.12,214.09,10.06614839]
[1756429736366,0.69,214.11,214.04,5.36196712]
[1756429736686,0.69,214.11,214.07,4.67136218]
[1756429736888,0.69,214.11,214.09,10.06614839]
[1756429737185,3.06865614,214.14,214.1,10.06614839]
[1756429737375,0.69,214.13,214.07,4.67136218]
[1756429737576,0.69,214.13,214.08,10.06614839]
[1756429737577,0.69,214.12,214.08,10.06614839]
[1756429737759,0.69,214.12,214.09,10.06614839]
[1756429737965,0.69,214.12,214.02,17.0436118]
[1756429738159,0.69,214.12,214.09,10.06614839]
[1756429738358,0.69,214.12,214.08,10.06614839]
[1756429738587,0.69,214.12,214.09,10.06614839]
[1756429738967,3.06865614,214.14,214.11,10.06614839]
[1756429739291,3.07264078,214.16,214.13,6.81380812]
[1756429739468,0.69,214.18,214.14,6.81380812]
[1756429739668,0.69,214.17,214.14,6.81380812]
[1756429739869,3.07271854,214.19,214.16,6.81380812]
[1756429740087,0.2,214.2,214.17,6.81380812]
[1756429740274,3.07271854,214.22,214.19,6.81380812]
[1756429740468,3.07271854,214.24,214.21,6.81380812]
[1756429740670,0.69,214.23,214.14,0.69]
[1756429740985,0.69,214.23,214.2,6.81380812]
[1756429741185,3.76224677,214.26,214.22,6.81380812]
[1756429741396,3.07224677,214.27,214.16,0.69]
[1756429741601,0.69,214.26,214.16,0.69]
[1756429741769,0.69,214.26,214.22,6.81380812]
[1756429741969,3.07224677,214.27,214.24,6.81380812]
[1756429742173,13.82720344,214.29,214.23,6.81380812]
[1756429742468,13.82720344,214.29,214.18,0.69]
[1756429742469,6.48419349,214.28,214.18,26.0]
[1756429742679,0.06,214.29,214.28,4.66679111]
[1756429742878,0.06,214.29,214.28,11.48059923]
[1756429743094,0.06,214.29,214.27,6.81380812]
[1756429743095,0.75,214.29,214.27,6.81380812]
[1756429743400,0.06,214.29,214.27,6.81380812]
[1756429743695,7.50380812,214.28,214.17,0.69]
[1756429743896,6.48400352,214.27,214.17,0.69]
[1756429744100,3.07255741,214.27,214.23,6.81380812]
[1756429744396,3.07255741,214.28,214.26,6.81380812]
[1756429744691,0.06,214.29,214.2,0.69]
[1756429744870,0.06,214.29,214.25,6.81380812]
[1756429745072,0.06,214.29,214.26,6.81380812]
[1756429745271,0.06,214.29,214.27,6.81380812]
[1756429745472,0.06,214.29,214.28,6.81380812]
[1756429745883,0.06,214.29,214.26,6.81380812]
[1756429746706,0.06,214.29,214.27,6.81380812]
[1756429746986,0.06,214.29,214.26,6.81380812]
[1756429747588,0.06,214.29,214.24,6.81380812]
[1756429747886,0.06,214.29,214.23,4.66788031]
[1756429748096,0.06,214.29,214.24,6.81380812]
[1756429748298,6.81380812,214.26,214.18,0.69]
[1756429748489,3.07255741,214.25,214.18,5.35897002]
[1756429748673,6.81380812,214.24,214.18,4.66897002]
[1756429749021,3.07255741,214.23,214.2,6.81380812]
[1756429749200,3.07356533,214.25,214.21,6.81380812]
[1756429749377,6.81380812,214.26,214.2,6.81380812]
[1756429749574,9.88737345,214.25,214.19,6.81380812]
[1756429749778,9.88737345,214.24,214.18,11.48277814]
[1756429749989,3.07356533,214.23,214.19,6.81380812]
[1756429750304,9.88737345,214.24,214.18,11.48277814]
[1756429750475,3.07356533,214.23,214.18,11.48277814]
[1756429751378,3.07356533,214.23,214.18,92.18277814]
[1756429751707,3.76356533,214.23,214.18,92.18275619]
[1756429752088,3.76356533,214.23,214.18,4.66894807]
[1756429752288,3.76356533,214.23,214.18,11.48275619]
[1756429752497,3.07356533,214.23,214.19,7.50380812]
[1756429752796,3.07356533,214.24,214.19,7.50380812]
[1756429753000,3.07356533,214.24,214.2,4.66853408]
[1756429754011,3.07356533,214.25,214.2,4.66853408]
[1756429754201,3.76356533,214.25,214.2,4.66853408]
[1756429754996,3.07356533,214.25,214.2,11.4823422]
[1756429755198,3.07356533,214.27,214.23,6.81380812]
[1756429755505,9.94737345,214.29,214.23,6.81380812]
[1756429755714,6.81380812,214.27,214.2,4.66853408]
[1756429755907,9.88737345,214.26,214.2,11.4823422]
[1756429756091,9.88737345,214.26,214.2,4.66853408]
[1756429756092,3.07356533,214.25,214.2,4.66853408]
[1756429756288,6.81380812,214.28,214.22,6.81380812]
[1756429756593,3.07356533,214.27,214.22,6.81380812]
[1756429756795,3.07356533,214.27,214.23,6.81380812]
[1756429756994,3.07356533,214.28,214.23,6.81380812]
[1756429757314,3.07356533,214.28,214.24,4.66766243]
[1756429757493,3.13356533,214.29,214.27,6.81380812]
[1756429757691,0.06,214.29,214.27,0.69]
[1756429757893,0.06,214.29,214.28,6.81380812]
[1756429758216,0.06,214.29,214.24,16.33681851]
[1756429758217,0.06,214.29,214.24,5.35766243]
[1756429758517,0.75,214.29,214.24,11.48147055]
[1756429758687,0.06,214.29,214.27,6.81380812]
[1756429759103,0.06,214.29,214.28,4.66679111]
[1756429759298,0.06,214.29,214.28,12.17059923]
[1756429760184,0.06,214.29,214.28,6.81380812]
[1756429760413,7.56380812,214.29,214.22,6.81380812]
[1756429760599,3.07581452,214.28,214.23,6.81380812]
[1756429760800,0.75,214.29,214.23,6.81380812]
[1756429761096,7.56380812,214.29,214.23,6.81380812]
[1756429761296,9.88962264,214.28,214.23,4.6678267]
[1756429761504,3.76581452,214.27,214.22,11.48187056]
[1756429761706,0.69,214.26,214.22,4.66806244]
[1756429761905,0.69,214.26,214.2,0.03]
[1756429761906,6.81380812,214.23,214.2,0.03]
[1756429762088,7.50380812,214.23,214.2,0.03]
[1756429762283,10.57617202,214.22,214.2,0.03]
[1756429762483,3.07245859,214.21,214.2,0.03]
[1756429762705,6.81380812,214.22,214.2,0.03]
[1756429762909,6.81380812,214.23,214.2,0.03]
[1756429763109,3.07147544,214.22,214.2,0.03]
[1756429763690,10.86081253,214.27,214.21,7.50380812]
[1756429763883,3.07268127,214.26,214.21,7.50380812]
[1756429764809,3.07268127,214.26,214.22,7.50380812]
[1756429765116,3.07268127,214.27,214.23,0.69]
[1756429765289,9.88648939,214.28,214.23,5.35772109]
[1756429765489,3.07268127,214.27,214.23,5.35772109]
[1756429765988,6.87380812,214.29,214.23,11.48152921]
[1756429766289,13.30492981,214.28,214.23,4.66772109]
[1756429766498,0.06,214.29,214.23,4.66772109]
[1756429766499,3.07268127,214.27,214.23,4.66772109]
[1756429766702,0.06,214.29,214.24,6.81380812]
[1756429766896,3.42013898,214.28,214.24,7.50380812]
[1756429767101,3.13268127,214.29,214.25,6.81380812]
[1756429767303,3.42136715,214.28,214.26,4.66722673]
[1756429767893,0.06,214.29,214.26,4.66722673]
[1756429768316,0.06,214.29,214.25,4.66744457]
[1756429768625,3.13268127,214.29,214.25,4.66744457]
[1756429768804,3.13268127,214.29,214.25,12.17125269]
[1756429769007,0.06,214.29,214.26,7.50380812]
[1756429769313,0.06,214.29,214.27,0.69]
[1756429770005,0.06,214.29,214.25,4.66744457]
[1756429770213,3.42237658,214.28,214.25,4.66744457]
[1756429770413,3.42237658,214.28,214.25,5.36744457]
[1756429770811,3.13268127,214.29,214.25,5.36744457]
[1756429771215,3.13268127,214.29,214.25,12.18125269]
[1756429771426,3.42498426,214.28,214.25,12.18125269]
[1756429771924,3.13268127,214.29,214.25,12.18125269]
[1756429772299,0.06,214.29,214.25,12.18125269]
[1756429772501,0.06,214.29,214.25,11.48125269]
[1756429772702,0.06,214.29,214.25,12.18125269]
[1756429773229,0.06,214.29,214.25,5.36744457]
[1756429773527,3.13268127,214.29,214.25,5.36744457]
[1756429774217,6.81380812,214.26,214.21,4.66827634]
[1756429774529,6.81380812,214.24,214.2,0.03]
[1756429774712,3.07268127,214.23,214.2,0.03]
[1756429774910,9.88648939,214.23,214.2,0.03]
[1756429775142,6.81380812,214.21,214.2,0.03]
[1756429775301,6.50463547,214.21,214.2,0.03]
[1756429775503,14.03844359,214.21,214.2,0.03]
[1756429777227,13.59559401,214.2,214.17,0.03]
[1756429777417,24.56199175,214.18,214.17,0.03]
[1756429777624,27.19836074,214.18,214.17,0.03]
[1756429777927,27.91836074,214.18,214.17,0.03]
[1756429778123,27.92462971,214.18,214.17,0.03]
[1756429778502,13.32471256,214.18,214.17,0.03]
[1756429779315,6.51090444,214.18,214.17,0.03]
[1756429779518,17.19657067,214.18,214.17,0.03]
[1756429779714,17.91657067,214.18,214.17,0.03]
[1756429779916,14.04471256,214.18,214.17,0.03]
[1756429780806,17.19685195,214.18,214.17,0.03]
[1756429781229,13.32471256,214.18,214.17,0.03]
[1756429781617,13.76093657,214.18,214.17,0.03]
[1756429781928,17.20490862,214.18,214.17,0.03]
[1756429782303,10.3911005,214.18,214.17,7.54380812]
[1756429782508,3.07268127,214.18,214.17,7.54380812]
[1756429782711,3.07268127,214.2,214.17,12.21299614]
[1756429782925,6.51903403,214.19,214.18,0.7]
[1756429783439,3.07268127,214.19,214.18,7.51380812]
[1756429783639,3.87444718,214.23,214.18,7.51380812]
[1756429783820,3.87444718,214.26,214.22,6.81380812]
[1756429784136,3.87444718,214.26,214.23,0.7]
[1756429784321,3.93444718,214.27,214.24,0.7]
[1756429784524,3.87444718,214.26,214.19,0.7]
[1756429784828,3.87444718,214.25,214.22,4.66809821]
[1756429785037,3.87444718,214.25,214.22,5.36809821]
[1756429785231,3.87444718,214.26,214.22,5.36809821]
[1756429786132,10.7482553,214.27,214.22,5.36809821]
[1756429786333,3.87444718,214.26,214.22,5.36809821]
[1756429786919,0.06,214.27,214.23,0.7]
[1756429787119,0.06,214.27,214.24,7.51380812]
[1756429787349,0.06,214.27,214.22,4.66809821]
[1756429787350,7.53380812,214.26,214.21,4.66829124]
[1756429787515,10.6882553,214.25,214.21,4.66829124]
[1756429787711,3.87444718,214.26,214.21,12.18209936]
[1756429787938,3.93444718,214.27,214.23,6.81380812]
[1756429788126,0.06,214.27,214.25,6.81380812]
[1756429788427,0.06,214.27,214.25,7.51380812]
[1756429788827,0.06,214.27,214.26,4.66722673]
[1756429789442,0.06,214.27,214.22,4.66809821]
[1756429789758,0.06,214.27,214.23,7.51380812]
[1756429790322,0.06,214.27,214.24,0.7]
[1756429791017,0.06,214.27,214.25,4.66744457]
[1756429791531,0.06,214.27,214.26,7.51380812]
[1756429792116,0.06,214.27,214.26,7.98053079]
[1756429792117,1e-08,214.27,214.26,7.98053079]
[1756429792730,1e-08,214.27,214.26,7.51380812]
[1756429793132,1e-08,214.27,214.26,12.18103485]
[1756429793955,1e-08,214.34,214.29,26.0]
[1756429794247,1e-08,214.34,214.33,6.81380812]
[1756429794651,1e-08,214.34,214.33,7.51380812]
[1756429794952,1e-08,214.34,214.33,6.81380812]
[1756429795254,1e-08,214.34,214.33,4.66570242]
[1756429795954,1e-08,214.34,214.33,11.47951054]
[1756429796126,1e-08,214.34,214.33,4.66570242]
[1756429797952,1e-08,214.34,214.33,6.81380812]
[1756429798645,1e-08,214.34,214.31,4.66613783]
[1756429798948,1e-08,214.34,214.33,6.81380812]
[1756429799839,7.53380813,214.34,214.26,5.36722673]
[1756429800020,6.81380812,214.32,214.26,12.18103485]
[1756429800426,7.53380812,214.33,214.27,6.81380812]
[1756429800931,6.81380812,214.31,214.26,4.66722673]
[1756429801138,0.69,214.3,214.26,4.66722673]
[1756429801445,0.69,214.3,214.24,4.66766243]
[1756429801446,6.81380812,214.28,214.24,4.66766243]
[1756429801625,7.50380812,214.28,214.24,4.66766243]
[1756429801827,7.50380812,214.28,214.23,4.66788031]
[1756429802341,0.69,214.27,214.23,4.66788031]
[1756429802550,0.69,214.26,214.22,4.66807694]
[1756429802726,6.81380812,214.24,214.2,4.66853408]
[1756429802921,0.69,214.23,214.2,4.66853408]
[1756429803341,0.14216157,214.3,214.2,4.66853408]
[1756429803534,6.81380812,214.25,214.2,4.66853408]
[1756429803730,7.50380812,214.25,214.2,4.66853408]
[1756429804053,7.50380812,214.28,214.22,6.81380812]
[1756429804353,3.09443155,214.27,214.22,6.81380812]
[1756429804764,10.59823967,214.27,214.21,0.71]
[1756429804942,3.09443155,214.26,214.21,7.52380812]
[1756429805336,3.09443155,214.26,214.21,6.81380812]
[1756429805537,3.09443155,214.27,214.25,6.81380812]
[1756429805742,3.09443155,214.31,214.26,7.52380812]
[1756429805970,3.09443155,214.32,214.29,11.48038145]
[1756429806150,3.09443156,214.34,214.29,11.48038145]
[1756429806352,1e-08,214.34,214.29,11.48038145]
[1756429806855,1e-08,214.34,214.3,7.52380812]
[1756429807245,1e-08,214.34,214.3,6.81380812]
[1756429807461,6.81380812,214.32,214.29,4.66657333]
[1756429807663,10.59421895,214.31,214.26,4.66722673]
[1756429807846,6.81380812,214.33,214.27,6.81380812]
[1756429808049,3.09066654,214.32,214.29,6.81380812]
[1756429808259,3.09066654,214.33,214.27,0.71]
[1756429808573,3.09066654,214.33,214.26,16.33529356]
[1756429808574,6.81380812,214.32,214.26,23.14910168]
[1756429808872,3.09001302,214.31,214.26,4.66722673]
[1756429809044,6.81380812,214.32,214.26,11.48103485]
[1756429809245,3.09001302,214.31,214.26,11.48103485]
[1756429809568,3.78000322,214.31,214.26,4.66722673]
[1756429809751,10.59381134,214.31,214.26,4.66722673]
[1756429810068,7.50380812,214.31,214.26,4.66722673]
[1756429810268,0.69,214.31,214.26,4.66722673]
[1756429810464,7.50380812,214.31,214.26,4.66722673]
[1756429810971,7.09813126,214.33,214.27,7.52380812]
[1756429811175,3.09049555,214.32,214.27,0.71]
[1756429811359,1e-08,214.34,214.28,7.52380812]
[1756429811571,6.81380813,214.34,214.28,7.52380812]
[1756429811762,10.59445627,214.33,214.27,6.81380812]
[1756429812075,6.81380812,214.31,214.26,4.66722673]
[1756429812299,6.81380812,214.27,214.24,4.66766243]
[1756429812450,3.78002246,214.3,214.21,4.66831613]
[1756429812451,6.81380812,214.25,214.21,4.66831613]
[1756429812771,6.81380812,214.23,214.21,4.66831613]
[1756429812975,0.28432314,214.28,214.19,0.03]
[1756429813276,6.81380812,214.2,214.19,0.03]
[1756429813584,7.50380812,214.2,214.19,0.03]
[1756429813751,7.50380812,214.2,214.19,4.69875204]
[1756429813956,6.81380812,214.22,214.19,4.69875204]
[1756429814174,6.81380812,214.22,214.19,0.03]
[1756429814379,6.81380812,214.22,214.15,0.03]
[1756429814380,39.59559401,214.16,214.15,0.03]
[1756429814554,42.96768165,214.16,214.15,0.03]
[1756429814756,3.0877645,214.16,214.15,0.03]
[1756429814974,3.0877645,214.18,214.15,7.55380812]
[1756429815181,0.97432314,214.21,214.15,7.55380812]
[1756429815182,6.81380812,214.19,214.15,0.03]
[1756429815483,6.81380812,214.2,214.18,0.03]
[1756429815866,3.7800554,214.19,214.18,0.03]
[1756429816684,0.69,214.19,214.18,0.03]
[1756429817191,7.09813126,214.21,214.18,0.03]
[1756429817488,0.28432314,214.21,214.18,0.03]